Cogmind - Beta 11 X10 @@@ ROGUE MODE // 2022.02.03 @ 23:59:44 Player: Runia Result: Destroyed by D-53 Grenadier with Mini Grenade Launcher Performance ------------- Evolutions (0) 0 Regions Visited (2) 400 Robots Destroyed (27) 135 Value Destroyed (334) 334 Prototype IDs (3) 60 Alien Tech Used (0) 0 Bonus (-1337) -1337 TOTAL SCORE: -408 Bonus ------- Friendly Fire -1337 Cogmind --------- Core Integrity 0/250 Matter 256/300 Energy 78/100 System Corruption 3% Temperature Cool (60) Movement Core (750) Ox14 Location -10/Mines Parts ------- > --- POWER (1) -------- (None) > --- PROPULSION (2) --- (None) > --- UTILITY (2) ------ High-capacity Storage Unit > --- WEAPON (2) ------- Beam Cannon Light Assault Rifle > --- INVENTORY (20) --- Ion Engine High-capacity Matter Pod (200) YI-UF0's Bottomless Matter Pit (94) Structural Scanner Improved Terrain Scanner Assault Rifle Light Assault Rifle Light Assault Rifle Grenade Launcher Grenade Launcher Grenade Launcher Rocket Launcher YI-UF0's Doublenader Makeshift Hammer Mining Claw Peak State ------------ > --- POWER ------------ Ion Engine > --- PROPULSION ------- Light Treads Light Treads > --- UTILITY ---------- High-capacity Storage Unit YI-UF0's Bottomless Matter Pit > --- WEAPON ----------- Beam Cannon Mining Claw > --- INVENTORY -------- Ion Engine High-capacity Matter Pod Structural Scanner Light Assault Rifle Light Assault Rifle Light Assault Rifle Grenade Launcher Grenade Launcher Grenade Launcher Rocket Launcher YI-UF0's Doublenader Makeshift Hammer [Rating: 16] Favorites ----------- Power Ion Engine Engine Ion Engine Propulsion Light Treads Treads Light Treads Leg Aluminum Leg Utility High-capacity Storage Unit Device Structural Scanner Storage High-capacity Storage Unit Weapon Light Assault Rifle Energy Gun Medium Laser Energy Cannon Beam Cannon Ballistic Gun Light Assault Rifle Launcher Grenade Launcher Slashing Weapon Mining Claw Build | -11 -10 -10 ------- Run | Scr Mat Min Slots Evolved . | . . . Power . | . . . Propulsion . | . . . Utility . | . . . Weapon . | . . . Parts Attached 23 | . 12 11 Power 1 | . 1 . Engine 1 | . 1 . Core . | . . . Reactor . | . . . Propulsion 3 | . 2 1 Treads 3 | . 2 1 Leg . | . . . Wheel . | . . . Hover . | . . . Flight . | . . . Utility 7 | . 3 4 Device 4 | . 1 3 Storage 3 | . 2 1 Processor . | . . . Hackware . | . . . Protection . | . . . Artifact . | . . . Weapon 12 | . 6 6 Energy Gun 1 | . 1 . Energy Cannon 1 | . 1 . Ballistic Gun 5 | . 2 3 Ballistic Cannon . | . . . Launcher 3 | . 1 2 Special Weapon . | . . . Impact Weapon . | . . . Slashing Weapon 2 | . 1 1 Piercing Weapon . | . . . Special Melee Weapon . | . . . Unidentified Prototypes 1 | . . 1 Parts Lost 6 | . . 6 Power 1 | . . 1 Propulsion 3 | . . 3 Utility 2 | . . 2 Weapon . | . . . Highest Loss Streak 6 | . . 6 To Critical Strikes . | . . . Average Slot Usage (%) 95 | . 92 99 Engine 13 | . 14 13 Treads 27 | . 28 27 Device 9 | . 6 13 Storage 14 | . 14 14 Energy Gun 2 | . 4 . Energy Cannon 6 | . 1 14 Ballistic Gun 14 | . 17 8 Launcher 2 | . 3 . Slashing Weapon 2 | . . 5 Naked Turns . | . . . Heaviest Build 51 | 13 51 51 Greatest Support 40 | 20 40 40 Greatest Overweight (x) 1 | . 1 1 Average Overweight (x) . | . . 1 Largest Inventory Capacity 20 | 8 20 20 Average Capacity 16 | 8 13 20 Most Carried 17 | 5 12 17 Average Carried 9 | 4 7 11 Final Capacity 20 | 8 20 20 Final Carried 15 | 4 11 15 Class Distribution -------------------- 100% | Mutant Dominant Class ---------------- Mutant | -10/Materials Mutant | -10/Mines Resources | -11 -10 -10 ----------- Run | Scr Mat Min Matter Collected 851 | 189 260 402 Remotely . | . . . Salvage Created 822 | . 423 399 Parts 52 | . 31 21 Haulers Intercepted 1 | . 1 . Recyclers Shooed 1 | . 1 . Parts Field Recycled . | . . . Retrieved Matter . | . . . Parts Self-Destructed . | . . . Prevented . | . . . Kills | -11 -10 -10 ------- Run | Scr Mat Min Combat Hostiles Destroyed 15 | . 11 4 Guns 8 | . 7 1 Cannons 1 | . 1 . AOE 6 | . 3 3 Classes Destroyed 10 | . 7 3 Worker 3 | . . 3 Builder 1 | . . 1 Tunneler 2 | . 1 1 Hauler 1 | . 1 . Recycler 3 | . 1 2 Operator 1 | . 1 . Watcher 1 | . 1 . Swarmer 9 | . 6 3 Grunt 5 | . 5 . Assembled 1 | . . 1 Best Kill Streak 6 | . 6 3 Combat Bots Only 6 | . 6 3 Max Kills in Single Turn 2 | . 2 2 Gunslinging . | . . . Exploded 2 | . 1 2 Melee . | . . . Uniques/NPCs Destroyed 1 | . . 1 YI-UF0 (-10/Mines) Combat | -11 -10 -10 -------- Run | Scr Mat Min Damage Taken 1156 | . 395 761 Core 301 | . 57 244 Absorbed by Shields . | . . . Core Remaining (%) 100 | 100 . . Volleys Fired 47 | . 36 11 Largest 2 | . 2 2 Hottest 80 | . 80 80 Shots Fired 87 | . 68 19 Gun 69 | . 61 8 Cannon 10 | . 3 7 Launcher 8 | . 4 4 Special . | . . . Kinetic 55 | . 47 8 Thermal 24 | . 17 7 Explosive 8 | . 4 4 Electromagnetic . | . . . Robot Hit Streak 13 | . 11 13 Robot Miss Streak 3 | . 3 2 Penetration Max . | . . . Secondary Targets 1 | . 1 . Max Gunslinging Chain 1 | . 1 . Shots Hit Robots 68 | . 45 23 Core Hits 38 | . 20 18 Critical Kills . | . . . Critical Parts Destroyed . | . . . Critical Strikes 1 | . 1 . Burn 1 | . 1 . Melee Attacks 20 | . 5 15 Impact . | . . . Slashing 20 | . 5 15 Piercing . | . . . Sneak Attacks 13 | . 1 12 Combat Hostiles . | . . . Follow-up Attacks . | . . . Damage Inflicted 2044 | . 762 1282 Guns 511 | . 467 44 Cannons 141 | . 52 89 Explosions 545 | . 161 384 Melee 847 | . 82 765 Ramming . | . . . Kinetic 410 | . 366 44 Thermal 242 | . 153 89 Explosive 545 | . 161 384 Electromagnetic . | . . . Impact . | . . . Slashing 847 | . 82 765 Piercing . | . . . Highest Corruption 3 | . . 3 Average Corruption 3 | . . 3 Corruption Purged . | . . . Corruption Blocked . | . . . Effects 1 | . . 1 Misfires 1 | . . 1 Overload Shots . | . . . Overflow Damage 126 | . 42 84 Projectiles 7 | . . 7 Explosions . | . . . Melee 119 | . 42 77 Knockbacks . | . . . Impact . | . . . Kinetic . | . . . Secondary . | . . . Self-Inflicted Damage 94 | . . 94 Shots 3 | . . 3 Rammed . | . . . Targets Rammed . | . . . Kicked . | . . . Crushed . | . . . Highest Temperature 117 | . 117 100 Average Temperature 37 | . 37 37 Received Heat Transfer 172 | . 132 40 Siege Activations . | . . . Robots Corrupted . | . . . Combat Hostiles . | . . . Parts Fried . | . . . Impact Corruptions . | . . . Robots Melted . | . . . Combat Hostiles . | . . . Parts Melted 1 | . 1 . Heat Transferred 666 | . 481 185 Parts Sabotaged . | . . . Parts Stolen . | . . . Parts Stripped . | . . . Power Chain Reactions . | . . . Missiles Intercepted . | . . . Alert | -11 -10 -10 ------- Run | Scr Mat Min Peak Influence 170 | . 170 96 Initial 26 | . . 26 Average 54 | . 53 56 Maximum Alert Level . | . . . Low Security (%) 100 | 100 100 100 Level 1 . | . . . Level 2 . | . . . Level 3 . | . . . Level 4 . | . . . Level 5 . | . . . High Security . | . . . Max Security . | . . . Squads Dispatched 3 | . 3 . Investigation 1 | . 1 . Extermination . | . . . Reinforcement 2 | . 2 . Assault . | . . . Garrison . | . . . Intercept . | . . . Construction Impeded . | . . . Haulers Reinforced . | . . . Active Scanning Responses . | . . . Cargo Convoy Interrupts . | . . . Stealth | -11 -10 -10 --------- Run | Scr Mat Min Distress Signals 3 | . 3 . Communications Jammed . | . . . Distress Signals . | . . . Times Spotted 37 | . 24 13 Peak Tracking Total 8 | . 4 8 Tactical Retreats . | . . . Traps | -11 -10 -10 ------- Run | Scr Mat Min Traps Triggered . | . . . Indirectly . | . . . Trap Hack Attempts . | . . . Triggered . | . . . Disarmed . | . . . Reprogrammed . | . . . Reused . | . . . Traps Extracted . | . . . Installed . | . . . Triggered . | . . . Machines | -11 -10 -10 ---------- Run | Scr Mat Min Machines Disabled . | . . . Max in Single Turn . | . . . Machines Sabotaged . | . . . Garrisons Compromised . | . . . Overloaded Fab Kills . | . . . Hacking | -11 -10 -10 --------- Run | Scr Mat Min Machines Accessed 6 | . 6 . Terminals 5 | . 5 . Fabricators . | . . . Repair Stations . | . . . Recycling Units 1 | . 1 . Scanalyzers . | . . . Garrison Access . | . . . Total Hacks 16 | . 16 . Successful 7 | . 7 . Failed 9 | . 9 . Catastrophic . | . . . Database Lockouts . | . . . Manual 5 | . 5 . Terminals 15 | . 15 . Fabricators . | . . . Repair Stations . | . . . Recycling Units 1 | . 1 . Scanalyzers . | . . . Garrison Access . | . . . Terminal Hacks 6 | . 6 . Prototype ID Bank 1 | . 1 . Branch Access Points 1 | . 1 . Terminal Index 1 | . 1 . Locate Traps 1 | . 1 . Registered Components 1 | . 1 . Zone Layout 1 | . 1 . Fabricator Hacks . | . . . Repair Station Hacks . | . . . Recycling Unit Hacks . | . . . Scanalyzer . | . . . Garrison Access Hacks . | . . . Unauthorized Hacks 1 | . 1 . Terminals . | . . . Fabricators . | . . . Repair Stations . | . . . Recycling Units 1 | . 1 . Tunnel 1 | . 1 . Scanalyzers . | . . . Garrison Access . | . . . Data Cores Recovered . | . . . Used . | . . . Hacking Detections 5 | . 5 . Full Trace Events . | . . . Feedback Events . | . . . Feedback Blocked . | . . . Robot Schematics Acquired . | . . . Robots Built . | . . . Authchips . | . . . Time . | . . . Total Robot Build Rating . | . . . Part Schematics Acquired . | . . . Parts Built . | . . . Authchips . | . . . Time . | . . . Total Part Build Rating . | . . . Parts Repaired . | . . . Time . | . . . Parts Recycled . | . . . Recycled Matter . | . . . Retrieved Matter . | . . . Retrieved Components . | . . . Parts Scanalyzed . | . . . Part Schematics Acquired . | . . . Parts Damaged . | . . . Bothacking | -11 -10 -10 ------------ Run | Scr Mat Min Used RIF Installer . | . . . Robots Hacked . | . . . Non-combat . | . . . Combat . | . . . Robot Hacks Applied . | . . . Relay Couplers Released . | . . . Fabnet Peak Effective % . | . . . Robots Rewired . | . . . Allies Hacked . | . . . Hacks Repelled . | . . . Allies | -11 -10 -10 -------- Run | Scr Mat Min Total Allies . | . . . Largest Group . | . . . Highest-Rated Group . | . . . Highest-Rated Ally . | . . . Total Orders . | . . . Ally Attacks . | . . . Total Damage . | . . . Kills . | . . . Allies Corrupted . | . . . Allies Melted . | . . . Intel | -11 -10 -10 ------- Run | Scr Mat Min Robot Analysis Total . | . . . Derelict Logs Recovered 1 | . . 1 Drone Launches . | . . . Drone Recoveries . | . . . Exploration | -11 -10 -10 ------------- Run | Scr Mat Min Turns Passed 1868 | 2 1116 750 Spaces Moved 766 | 1 493 272 Core . | . . . Treads 765 | . 493 272 Legs 1 | 1 . . Wheels . | . . . Hover . | . . . Flight . | . . . Fastest Speed 120 | 120 160 240 Average Speed 208 | 120 191 240 Slowest Speed 240 | 120 240 240 Overloaded Moves . | . . . Propulsion Burnouts . | . . . Robots Hopped . | . . . Cave-ins Triggered . | . . . Exploration Rate (%) 48 | 1 89 56 Regions Visited 2 Branch Regions 1 Pre-discovered Areas 2 | . 1 1 Known Exits Taken 1 | . 1 . Unknown Exits Taken 1 | 1 . . Scrap Searched 1 | . . 1 Spaces Dug 4 | . 2 2 Terrain Destroyed 72 | . 41 31 Melee 4 | . 2 2 Projectile . | . . . AOE 68 | . 39 29 Terrain Rammed . | . . . Walls Destroyed . | . . . Machines Disabled . | . . . Actions | -11 -10 -10 --------- Run | Scr Mat Min Total 912 | 2 590 320 Wait 23 | . 23 . Move 764 | . 492 272 Hop . | . . . Pick Up 21 | . 14 7 Fast Attach 2 | . 1 1 Attach 6 | . 3 3 Detach 1 | . . 1 Swap 15 | . 8 7 Drop 13 | 2 8 3 Fire 47 | . 36 11 Melee 20 | . 5 15 Ram . | . . . Kick . | . . . Crush . | . . . Escape Stasis . | . . . Rewire . | . . . Trap . | . . . Miscellaneous . | . . . Route ------- -11/Scrapyard -10/Materials (discovered 4 exits: [*Mat x3] / *Min) -10/Mines (discovered 1 exit: [*Mat]) History --------- Turn | Location | Event 3 | -11/Scrapyard | Discovered new exit (range 0) 3 | -11/Scrapyard | Entered Materials 13 | -10/Materials | Discovered new exit (range 16) 229 | -10/Materials | Discovered new exit (range 15) 314 | -10/Materials | Build established: Mutant 438 | -10/Materials | Discovered new exit (range 3) 497 | -10/Materials | Discovered new exit (range 18) 497 | -10/Materials | Identified exit to Mines 1119 | -10/Materials | Entered Mines 1163 | -10/Mines | Received a Rocket Launcher from a helpful Derelict 1225 | -10/Mines | Learned location of Storage (-7) 1231 | -10/Mines | Discovered new exit (range 4) 1403 | -10/Mines | Learned Materials stockpile data 1441 | -10/Mines | A weapon hastily lodged in a ceiling crevice suddenly fell to the ground 1579 | -10/Mines | YI-UF0 nonchalantly dropped a Grenade Launcher on the ground 1600 | -10/Mines | Destroyed YI-UF0 1608 | -10/Mines | Found Prototype Storage 1619 | -10/Mines | Identified YI-UF0's Bottomless Matter Pit 1824 | -10/Mines | Assembled infested the area 1862 | -10/Mines | Core integrity fell below 50% 1866 | -10/Mines | Core integrity fell below 20% 1869 | -10/Mines | Destroyed by D-53 Grenadier with Mini Grenade Launcher Last Messages --------------- 01833_ Sneak attack on U-05 Engineer. 01833_ U-05 Engineer destroyed. 01836_ Acquired 29 matter. 01849_ K-01 Serf destroyed. 01850_ Seismic Detector destroyed. 01850_ System corrupted by crushing effect (+3). 01853_ as-42083 destroyed. 01856_ Lgt. Treads destroyed. 01857_ as-30151 destroyed. 01857_ as-10688 destroyed. 01857_ as-75103 destroyed. 01857_ as-75631 destroyed. 01857_ as-80506 destroyed. 01859_ as-63344 destroyed. 01859_ Ion Engine destroyed. 01861_ Shock Absorption System destroyed. 01863_ Lgt. Treads destroyed. 01868_ System corrupted: FCS attempts to trigger Lgt. Assault Rifle. 01868_ System corrupted: Lgt. Assault Rifle misfires. 01868_ The unstable cave ceiling collapses. Map ----- +----------------------------------------------------+ | ??????????????????????????????????????????????## | | ??????????????????????????????????????????????## | | ??????????????????????????????????????????????## | | ??????????????????????????????????????????????## | | ??????????????????????????????### ????????### | | ?????????????????????????????#########???????### | | ????????????????????????????#### ###???????### | | ??????????????????????????? ### ###??????### | | ??????????????????????????#### #####????### | | ??????????????????????????### #####???#### | | ??????????????????????????## ####??### | | ??????????????????????????## ###??## | | ??????????????? ? ???????### < ##??## | | ????????????? ??????## #### ##??##### | | ????????????? t ????? ## ###### ###??##### | | ?????????????# ????## ######## ###??## | | ??????????????# ????## ####??### ##???## ## | | ???????????????# ???## ###?????## ####### ## | | ???????????????# d #??#######??????## ####### | | ???????????????# d ########???????## ### | | ????????????????# ####????????## ### | | ?????????????????# % ##???????### #### ## | | ??????????? ##### ##??????### ######## | | ???????????? % #???????## ######## | | ????????????????# #???????## | | ?????????????????# # @ ##??????## | | ???????????????# ###?????############ | | ???????????????# """ ###????############ | | ???????????????? """ # !#########????????? | | ?????????????????""" # ###= #########???????? | | ???????????????? a##########=! ###???????? | | ???????????????# ?????????### ##???????? | | ???????????????# ???????????### ##???????? | | ???????????????# ?????????????### | ##???????? | | ???????????????## ???????????###### ##???????? | | ????????????????#???????????###### ###???????? | | ????????????????????????????### ####??????? | | ????????????????????????????## ####?????? | | ????????????????????????????## ######??? | | ????????????????????????????### ### ######?? | | ????????????????????????????########## ###?? | | ???????????????????????????########### ##?? | | ??????????????????????????########### ##?? | | ??????????????????????????## ###?? | | ??????????????????????????## ###?? | | ??????????????????????????## ######### ##??? | | ??????????????????????????## ######## ###?? | | ???????????????????????????????????### ###?? | | ???????????????????????????????????#### #### | | ????????????????????????????????????#### #### | +----------------------------------------------------+ Best States ------------- Heat Dissipation 25 Energy Generation 10 Energy Capacity 250 Matter Stores 300 Matter Capacity 1800 Sight Range 16 Terrain Scan Density 10 Resistance: EX 25 Evasion (%) 40 Recoil Reduction 2 Item Schematics ----------------- None Robot Schematics ------------------ None Fabricated ------------ Nothing Alien Tech Used ----------------- None Achievements -------------- None Challenges ------------ None Game ------ Seed DeepGatlingBarrier Manual? 0 Play Time 00:10:59 Cumulative 545.5 hours Start 2022.02.03 @ 23:50:00 End 2022.02.03 @ 23:59:44 Sessions 1 Manual Loads 0 Difficulty Rogue Special Mode None Game No. 529 Rogue 529 Adventurer 0 Explorer 0 Win Type - Total 17 Types 10/2/3/1/0/0/0/1/0 Lore% 86 Gallery% 92 Achievement% 74 Wizard Run 0 Options --------- ASCII 0 Keyboard 0 Movement Mouse Keybinds 1 Fullscreen 2 Font 24/Smallcaps Map View 76x50 Tactical HUD 1 Map Filters NONE Filters NONE Steam 1 RUN: abffd6be-51bd-4217-89b9-1bd6dbfd6cc3